[Event "16th Serbian Championship 2022"]
[Site "Bajina Basta"]
[Date "2022.12.07"]
[Round "2.1"]
[White "Martic, Ivan"]
[Black "Ivanisevic, Ivan"]
[Result "1/2-1/2"]
[ECO "A21"]
[WhiteElo "2270"]
[BlackElo "2533"]
[Annotator "TA"]
[PlyCount "120"]
[EventDate "2022.12.06"]
[EventType "tourn"]
[EventCountry "SRB"]
[SourceTitle "playchess.com"]
[Source "ChessBase"]
[SourceQuality "1"]
[TimeControl "40/5400+30:1800+30"]

{[%evp 9,120,14,38,35,30,30,41,-12,-4,-14,0,0,0,0,-6,-8,-12,-28,-3,-8,0,-3,43,0,26,2,48,16,51,35,65,55,51,53,50,58,46,40,157,166,142,79,79,0,0,0,0,0,0,0,0,0,0,0,0,0,0,-18,-16,-16,-18,-16,0,-34,0,-17,-21,-25,-5,-5,-5,-5,-7,-16,-14,-57,0,0,0,0,0,0,0,0,0,0,0,0,0,0,0,0,0,-2,-2,-3,0,-2,0,0,0,0,0,0,0,0,0,0,0,0,0,0,0]} 1. c4 {[%emt 0:00:05]} e5 {[%emt 0:01:19]} 2. Nc3 {[%emt 0:00:18]} Bb4 {[%emt 0:02:04]} 3. Nd5 {[%emt 0:00:17]} Bc5 {[%emt 0:02:38]} 4. Nf3 {[%emt 0:00:31]} c6 {[%emt 0:00:07]} 5. Nc3 {[%emt 0:00:16]} Qe7 {[%emt 0:00:23]} 6. d4 {[%emt 0:04:39] A21: English Opening: 1...e5 2 Nc3.} exd4 {[%emt 0:00:06]} 7. Nxd4 {[%emt 0:00:08]} Nf6 {[%emt 0:00:27]} 8. e3 {[%emt 0:00:20]} ({Better is} 8. Bg5 $14) 8... O-O $11 {[%emt 0:00:17]} 9. Be2 {[%emt 0:00:11]} Rd8 {[%emt 0:02:21]} 10. Bf3 {[%emt 0:05:18]} d5 {[%emt 0:04:36]} 11. cxd5 {[%emt 0:00:24]} cxd5 {[%emt 0:00:09]} 12. O-O {[%emt 0:00:26]} Nc6 {[%emt 0:00:53]} 13. Nce2 {[%emt 0:03:09]} (13. a3 {is interesting.} Qe5 14. Nce2 Ne4 15. Bd2) 13... Ne5 {[%emt 0:03:58]} (13... Ne4 $5 {[%cal Re4g5]}) 14. b3 {[%emt 0:01:05] [#]} Ne4 $146 {[%emt 0:02:52]} ({Predecessor:} 14... Nxf3+ 15. Nxf3 Bg4 16. Bb2 Ne4 17. Nfd4 Bd7 18. Nf4 Be6 19. Ndxe6 fxe6 20. Qg4 Rd6 {1-0 (36) Malakhov,V (2701)-Bologan,V (2649) Kishinev 2014}) 15. Bb2 {[%emt 0:02:47]} Ng5 {[%emt 0:12:31]} (15... Bb4 $11) 16. Kh1 {[%emt 0:02:39]} Nexf3 {[%emt 0:05:56]} 17. gxf3 {[%emt 0:04:57]} Qf6 {[%emt 0:06:46]} (17... f6 $11) 18. Nf4 {[%emt 0:14:11] Pair of Knights!} (18. Rc1 $5 {[%cal Rc1c5]} Bf8 19. Nf4 $14) 18... Qh6 {[%emt 0:09:07]} 19. Rc1 {[%emt 0:03:34]} Bxd4 {[%emt 0:05:59]} 20. Bxd4 {[%emt 0:00:24]} Bf5 {[%emt 0:00:06][%cal Og5f3] And now ...Nxf3! would win.} 21. Rg1 $1 {[%emt 0:05:05]} Rd7 {[%emt 0:12:36] Prevents Rc7.} 22. Rg3 {[%emt 0:03:19][%cal Od4g7]} f6 {[%emt 0:03:28]} 23. Kg2 {[%emt 0:09:26]} Nf7 {[%emt 0:07:33]} (23... Ne6 $14) 24. Rc5 $1 $16 {[%emt 0:01:29] White is more active.} Rad8 {[%emt 0:00:11] [#]} 25. Qc1 {[%emt 0:01:34]} (25. Qa1 $142 $1 Kf8 26. Qc3) 25... Ne5 {[%emt 0:02:17]} 26. Qc3 {[%emt 0:02:27]} ({White should play} 26. Rc8 $16) 26... Ng6 $11 {[%emt 0:01:53]} 27. Nxg6 {[%emt 0:08:54]} hxg6 {[%emt 0:00:05]} 28. Rc7 {[%emt 0:01:40]} b6 {[%emt 0:03:43] Prevents Qa5.} 29. Qc6 {[%emt 0:06:34]} Rxc7 {[%emt 0:01:37]} 30. Qxc7 {[%emt 0:00:06]} Rd7 {[%emt 0:00:28]} 31. Qb8+ {[%emt 0:01:21]} Kf7 {[%emt 0:00:41]} 32. a4 {[%emt 0:00:49][%cal Oa4a5]} Qh7 {[%emt 0:02:55]} 33. a5 {[%emt 0:08:43]} bxa5 {[%emt 0:00:05]} 34. Qb5 {[%emt 0:01:54]} ({Much worse is} 34. Bc5 Qg8 35. Qb5 Qd8 $17) 34... Qg8 {[%emt 0:02:40]} 35. Qxa5 {[%emt 0:00:56]} Qc8 {[%emt 0:01:34]} 36. Bc5 {[%emt 0:00:49]} Qc6 {[%emt 0:00:41]} (36... Qc7 $5 {[%cal Rc7a5]} 37. Qb4 a6 $11) 37. b4 {[%emt 0:00:26]} a6 {[%emt 0:00:07]} 38. h3 {[%emt 0:01:22]} Qb5 {[%emt 0:00:49]} 39. Qxb5 {[%emt 0:05:36]} axb5 {[%emt 0:00:01][%mdl 4096] Endgame KRB-KRB} 40. Kh2 {[%emt 0:00:34]} Rd8 {[%emt 0:00:07]} 41. Rg1 {[%emt 0:31:05]} Rh8 {[%emt 0:30:22]} 42. Rh1 {[%emt 0:00:00]} Rh5 {[%emt 0:00:00]} (42... Bxh3 $2 43. Kg3 $18) (42... Rxh3+ $15 43. Kg2 {[#]} Rxf3 $1 44. Kxf3 Be4+ 45. Kg3 Bxh1) 43. Kg3 {[%emt 0:00:00] The position is equal.} Rg5+ {[%emt 0:00:00]} 44. Kh2 {[%emt 0:00:00]} Bd3 {[%emt 0:00:00]} 45. f4 {[%emt 0:00:00]} Rh5 {[%emt 0:00:00]} 46. Kg3 {[%emt 0:00:00]} g5 {[%emt 0:00:00]} 47. f3 {[%emt 0:00:00]} gxf4+ {[%emt 0:00:00]} 48. exf4 {[%emt 0:00:00]} Rh8 {[%emt 0:00:00]} 49. Rd1 {[%emt 0:00:00]} Bc4 {[%emt 0:00:00]} 50. Re1 {[%emt 0:00:00]} Kg6 {[%emt 0:00:00]} 51. Kg4 {[%emt 0:00:00]} Bd3 {[%emt 0:00:00]} 52. h4 {[%emt 0:00:00]} Bf5+ {[%emt 0:00:00]} 53. Kg3 {[%emt 0:00:00]} Ra8 {[%emt 0:00:00]} 54. Re7 {[%emt 0:00:00]} Ra3 {[%emt 0:00:00]} 55. Kf2 {[%emt 0:00:00]} Bd3 {[%emt 0:00:00]} 56. h5+ {[%emt 0:00:00]} Kh6 {[%emt 0:00:00]} 57. Rd7 {[%emt 0:00:00]} Ra2+ {[%emt 0:00:00]} 58. Kg3 {[%emt 0:00:00]} Bf1 {[%emt 0:00:02]} 59. Rxd5 {[%emt 0:01:05]} Rg2+ {[%emt 0:06:16]} 60. Kh4 {[%emt 0:00:06]} Rh2+ {[%emt 0:00:29] Weighted Error Value: White=0.10 (very precise) /Black=0.11 (very precise)} 1/2-1/2

[Event "16th Serbian Championship 2022"]
[Site "Bajina Basta"]
[Date "2022.12.07"]
[Round "2.2"]
[White "Indjic, Aleksandar"]
[Black "Perunovic, Miodrag"]
[Result "1-0"]
[ECO "E61"]
[WhiteElo "2631"]
[BlackElo "2417"]
[Annotator "TA"]
[PlyCount "64"]
[EventDate "2022.12.06"]
[EventType "tourn"]
[EventCountry "SRB"]
[SourceTitle "playchess.com"]
[Source "ChessBase"]
[SourceQuality "1"]
[TimeControl "40/5400+30:1800+30"]

{[%evp 9,64,33,29,-1,0,0,0,0,0,0,0,2,48,54,51,45,53,53,74,61,97,99,266,217,232,205,280,254,213,227,338,201,233,179,182,172,169,173,180,157,159,154,287,242,429,291,280,320,252,276,1861,39,266,262,1871,42,380]} 1. d4 {[%emt 0:00:27]} Nf6 {[%emt 0:00:35]} 2. c4 {[%emt 0:00:13]} g6 {[%emt 0:00:29]} 3. Nc3 {[%emt 0:00:15]} Bg7 {[%emt 0:00:04]} 4. Nf3 {[%emt 0:00:15]} d6 {[%emt 0:00:08]} 5. h3 {[%emt 0:00:06]} O-O {[%emt 0:00:11]} 6. g4 {[%emt 0:00:28] E61: King's Indian: Early deviations for White, including Smyslov System.} c5 {[%emt 0:06:08]} 7. d5 {[%emt 0:00:22]} e6 {[%emt 0:00:16]} 8. Bg2 {[%emt 0:00:06] The position is equal.} exd5 {[%emt 0:00:06]} 9. cxd5 {[%emt 0:00:07]} (9. Nxd5 Nxd5 10. cxd5 Na6 $15) 9... Re8 {[%emt 0:08:15] [#]} 10. Nd2 $146 {[%emt 0:00:21][%cal Bf3d2,Bd2e4,Be4g3][%mdl 32]} ({Predecessor:} 10. Kf1 Na6 11. Bg5 Nc7 12. Nd2 b5 13. a3 Rb8 14. e4 a5 15. Kg1 b4 16. axb4 axb4 {1-0 (28) Meneghetti,J (1756)-Harman,K (1650) ICCF email 2016}) 10... h5 {[%emt 0:10:35]} (10... Nbd7 $11) 11. g5 $14 {[%emt 0:04:30]} Nh7 {[%emt 0:00:33]} 12. Nde4 {[%emt 0:08:49]} Bf5 {[%emt 0:03:57]} 13. h4 {[%emt 0:04:30]} b5 {[%emt 0:00:37] [#] ...b4 is the strong threat.} 14. Ng3 $1 {[%emt 0:00:11] Hoping for Nxf5.} Bg4 {[%emt 0:07:32]} 15. Nxb5 {[%emt 0:00:55]} f6 $2 {[%emt 0:06:21]} (15... Na6 $16) 16. gxf6 {[%emt 0:05:43]} Bxf6 {[%emt 0:03:18]} 17. Qc2 {[%emt 0:01:02]} Kg7 {[%emt 0:19:20]} 18. Bf4 {[%emt 0:00:55]} Qa5+ {[%emt 0:01:08]} 19. Nc3 {[%emt 0:00:32] And now Be4 would win. The board is on fire.} Na6 {[%emt 0:01:04]} (19... Nd7 $142 20. Bxd6 Ne5) 20. Qd2 {[%emt 0:05:59]} (20. Bxd6 Rad8 $18) (20. Be4 $142) 20... Rab8 $18 {[%emt 0:01:36][%cal Ob8b2] White must now prevent ...Rxb2!} 21. O-O {[%emt 0:00:19] aiming for Nge4.} (21. Bxd6 $2 {[#] loses.} Rxb2 $3 {[%mdl 512]} 22. Qxb2 Bxc3+ 23. Kf1 Bxb2 $19) 21... Qd8 {[%emt 0:06:39]} 22. Nge4 {[%emt 0:00:34]} Be5 {[%emt 0:00:08]} 23. Bxe5+ {[%emt 0:01:05]} Rxe5 {[%emt 0:00:01]} 24. f4 {[%emt 0:00:52]} Re8 {[%emt 0:03:08]} 25. Ng5 {[%emt 0:00:48]} Nf6 {[%emt 0:00:01] Inhibits f5.} (25... Nc7 $16 26. e4 Qe7) 26. e4 {[%emt 0:04:51][%cal Be2e4,Be4e5][%mdl 32] Threatens to win with f5.} Qb6 $2 {[%emt 0:00:41]} (26... Nh7 27. b3 Nxg5) 27. Rae1 {[%emt 0:03:54]} c4+ {[%emt 0:02:37]} (27... Qxb2 $2 28. Qxb2 Rxb2 29. e5 $18) 28. Kh1 {[%emt 0:02:42]} Qxb2 {[%emt 0:00:08]} 29. Qxb2 {[%emt 0:01:14]} Rb6 $2 {[%emt 0:19:24]} (29... Rxb2 30. e5 Nh7) 30. Qb4 $2 Rxb4 $2 {[%emt 0:00:00]} (30... Nxb4 $14 31. e5 Ng8) 31. e5 {[%emt 0:00:39]} Rb2 $2 {[%emt 0:00:00]} (31... Nd7 32. Nce4 (32. exd6 Nf6 $16) 32... Re7 33. Nxd6 c3) 32. Nce4 $2 {[%emt 0:01:33]} (32. exf6+ $18 Kxf6 33. Rxe8) 32... Nd7 $2 {[%emt 0:00:00][%mdl 8192] Weighted Error Value: White=0.60/Black=0.52} (32... Nxd5 $2 33. Nxd6 (33. exd6 Nb8 $11) 33... Ndc7 34. Nxe8+ Nxe8 35. Rb1 Rxa2 36. Rfc1 $18) (32... Nxe4 $14 33. Nxe4 dxe5) 1-0

[Event "16th Serbian Championship 2022"]
[Site "Bajina Basta"]
[Date "2022.12.07"]
[Round "2.3"]
[White "Radovanovic, Nikola"]
[Black "Bogosavljevic, Boban"]
[Result "1/2-1/2"]
[ECO "B30"]
[WhiteElo "2414"]
[BlackElo "2521"]
[Annotator "TA"]
[PlyCount "89"]
[EventDate "2022.12.06"]
[EventType "tourn"]
[EventCountry "SRB"]
[SourceTitle "playchess.com"]
[Source "ChessBase"]
[SourceQuality "1"]
[TimeControl "40/5400+30:1800+30"]

{[%evp 9,89,22,26,-6,0,-11,-5,0,0,-39,-30,-70,-70,-88,-73,-85,-80,-191,-186,-145,-187,-210,-175,-154,-124,-120,-84,-80,-79,-71,0,-134,-130,-129,0,-17,12,-83,-84,-85,-66,-79,50,94,54,31,32,20,25,-18,60,25,37,43,96,96,99,96,89,73,77,60,60,56,110,12,12,12,15,15,12,14,34,28,28,28,34,8,8,1,8,0]} 1. e4 {[%emt 0:01:16]} c5 {[%emt 0:00:05]} 2. Nf3 {[%emt 0:00:07]} Nc6 {[%emt 0:00:03]} 3. Bc4 {[%emt 0:00:11]} e6 {[%emt 0:00:11]} 4. O-O {[%emt 0:00:11]} Nf6 {[%emt 0:15:32]} 5. Re1 {[%emt 0:00:15]} a6 {[%emt 0:07:36][%cal Of6e4]} 6. e5 {[%emt 0:08:07] B30: Sicilian: 2...Nc6 3 Bb5, lines without ...g6.} d5 $1 {[%emt 0:01:09][%cal Bd7d5,Bd5c4][%mdl 32]} 7. exf6 {[%emt 0:04:53]} dxc4 {[%emt 0:00:20]} 8. fxg7 {[%emt 0:00:08]} Bxg7 {[%emt 0:00:08]} 9. Nc3 {[%emt 0:03:10] [#]} O-O $146 {[%emt 0:28:09]} ({Predecessor:} 9... Nd4 10. Ne4 Qd5 11. d3 O-O 12. Bh6 f5 13. Bxg7 Kxg7 14. dxc4 Qxc4 15. Neg5 h6 {1-0 (44) Szabo,S-Sebestyen,B Sopot 1951}) 10. b3 {[%emt 0:23:11]} f5 {[%emt 0:12:42]} 11. Ba3 {[%emt 0:21:02]} b6 {[%emt 0:00:18]} 12. bxc4 {[%emt 0:01:08] [#]} e5 $1 {[%emt 0:00:23][%cal Be6e5,Be5e4][%mdl 32] Threatens to win with ...e4.} 13. Kh1 {[%emt 0:01:42]} (13. Nd5 $17) 13... e4 $19 {[%emt 0:02:11]} 14. Ng1 {[%emt 0:00:12]} Ne5 {[%emt 0:01:58]} 15. Rb1 {[%emt 0:02:38]} Nxc4 {[%emt 0:09:47]} 16. Bc1 {[%emt 0:00:11]} Bb7 {[%emt 0:03:15]} 17. Qe2 {[%emt 0:22:36]} b5 {[%emt 0:00:36]} 18. a4 {[%emt 0:08:32]} Ne5 {[%emt 0:00:46]} 19. axb5 {[%emt 0:00:00]} Qh4 {[%emt 0:04:24]} (19... axb5 $17 {...b4 is the strong threat.} 20. Nxb5 (20. Qxb5 Ng4 $17) 20... Bd5) 20. Bb2 {[%emt 0:00:00]} (20. Nh3 $11) 20... Ng4 $17 {[%emt 0:02:33][%csl Gg4][%cal Rh4h2]} ({Inferior is} 20... axb5 21. Nxb5 Rad8 22. Nh3 $15) 21. Nh3 {[%emt 0:00:00]} Bd4 {[%emt 0:00:53] This pair of bishops is nice.} (21... axb5 $17 {White must now prevent ...b4.} 22. Nxb5 Bxb2 23. Rxb2 e3) 22. Nd1 {[%emt 0:00:00]} Rf7 {[%emt 0:02:12]} (22... Qf6 {is more complex.} 23. Nf4 Qh6 24. h3 Rf7) 23. Bxd4 {[%emt 0:00:01]} (23. Ne3 $11) 23... cxd4 {[%emt 0:00:02]} 24. bxa6 {[%emt 0:00:16]} Bxa6 {[%emt 0:00:28]} 25. d3 {[%emt 0:00:11]} Qh6 {[%emt 0:02:21] Against Qd2} (25... Re8 $17 {aiming for ...Rfe7.} 26. Nb2 Rfe7) 26. f3 $14 {[%emt 0:00:47]} Nf6 {[%emt 0:02:07]} 27. fxe4 {[%emt 0:00:21]} (27. Rb4 {looks sharper.} Re8 28. Rb6 Bb7 29. dxe4 fxe4 30. Qc4) 27... fxe4 {[%emt 0:00:35]} 28. Rb6 {[%emt 0:00:41]} Qg7 {[%emt 0:01:55]} 29. Nf4 {[%emt 0:00:55]} (29. Rd6 $5 {[%cal Rd6d4]}) 29... Bb7 {[%emt 0:01:48]} (29... Qg5 $11 30. Rf1 Nd7 31. Rxa6 Rxa6 32. dxe4 Rb6) 30. Ne6 {[%emt 0:01:30]} (30. dxe4 {keeps more tension.} Bxe4 31. Kg1 Nd5 32. Re6) 30... exd3 {[%emt 0:00:26]} 31. cxd3 {[%emt 0:00:14]} Qg4 {[%emt 0:00:31]} (31... Qg6 $1 $14) 32. Qxg4+ $16 {[%emt 0:00:47]} Nxg4 {[%emt 0:00:01]} 33. h3 {[%emt 0:00:36]} ({Not} 33. Nxd4 Ra1 34. Kg1 {[#]} Ne3 $1 35. Rxb7 Rxb7 36. Rxe3 Rxd1+ 37. Kf2 Rd2+ 38. Ne2 Rd7 $17) 33... Nf6 {[%emt 0:00:57][%cal Bg4f6,Bf6d5,Bd5f4,Bf4d3][%mdl 32]} 34. Nxd4 {[%emt 0:00:53] White is more active.} Nd5 {[%emt 0:00:21] Prevents Ne3.} 35. Rb2 {[%emt 0:00:47]} Nf4 $1 {[%emt 0:00:31][%csl LRd3,LRh3]} 36. Rf1 {[%emt 0:00:27]} Ra1 {[%emt 0:00:32]} (36... Bd5 $14) 37. Ne3 {[%emt 0:00:32]} ({White should play} 37. Kh2 $16) 37... Rxf1+ $11 {[%emt 0:00:42]} 38. Nxf1 {[%emt 0:00:04]} Nxd3 {[%emt 0:00:30]} 39. Rb1 {[%emt 0:01:28]} Nf4 {[%emt 0:00:31][%csl LRg2,LRh3]} 40. Ne3 {[%emt 0:00:00]} Rd7 {[%emt 0:00:29]} 41. Ndf5 {[%emt 0:03:12]} Nxh3 {[%emt 0:21:46]} 42. Ng4 {[%emt 0:06:06] And now Nf6+ would win.} Kf8 {[%emt 0:00:36]} 43. Kh2 {[%emt 0:07:56]} (43. Rb6 $5 {[%cal Rf5d6]} Nf4 44. Rf6+ Rf7 45. Rxf7+ Kxf7 46. Nd6+ Kg6 47. Nxb7 $14) 43... Ng5 {[%emt 0:02:14]} 44. Rb6 {[%emt 0:08:13]} Ne4 {[%emt 0:03:13] Inhibits Nd6.} (44... Be4 $2 45. Rb8+ Kf7 46. Ne5+ Ke6 47. Nxd7 Bxf5 48. Rb5 $18) 45. Nf6 {[%emt 0:02:24] White happily takes the draw.   Weighted Error Value: White=0.28 (precise) /Black=0.24 (precise)} 1/2-1/2

[Event "16th Serbian Championship 2022"]
[Site "Bajina Basta"]
[Date "2022.12.07"]
[Round "2.4"]
[White "Kovacevic, Aleksandar"]
[Black "Perunovic, Milos"]
[Result "1/2-1/2"]
[ECO "D02"]
[WhiteElo "2470"]
[BlackElo "2541"]
[Annotator "TA"]
[PlyCount "33"]
[EventDate "2022.12.06"]
[EventType "tourn"]
[EventCountry "SRB"]
[SourceTitle "playchess.com"]
[Source "ChessBase"]
[SourceQuality "1"]
[TimeControl "40/5400+30:1800+30"]

{[%evp 15,20,0,0,0,0,-2,13]} 1. d4 {[%emt 0:00:06]} Nf6 {[%emt 0:00:15]} 2. Nf3 {[%emt 0:00:11]} d5 {[%emt 0:00:07]} 3. Bf4 {[%emt 0:00:12]} c5 {[%emt 0:00:27]} 4. e3 {[%emt 0:00:16]} Nc6 {[%emt 0:00:08]} 5. Nbd2 {[%emt 0:00:17]} e6 {[%emt 0:00:10]} 6. c3 {[%emt 0:00:16]} Bd6 {[%emt 0:00:21]} 7. Bg3 {[%emt 0:00:18]} O-O {[%emt 0:00:10]} 8. Bd3 {[%emt 0:00:11]} b6 {[%emt 0:00:14] The position is equal.} 9. Qe2 {[%emt 0:00:11] D02: 1 d4 d5 2 Nf3 sidelines, including 2...Nf6 3 g3 and 2...Nf6 3 Bf4.} Bb7 {[%emt 0:00:30]} 10. Rd1 {[%emt 0:00:26]} Ne7 {[%emt 0:00:26] [#] An uneventful encounter.   Weighted Error Value: White=0.00 (flawless) /Black=0.00 (flawless)} {Predecessor:} 11. Ne5 $146 Nf5 12. Bf4 Be7 13. g4 Nd6 14. g5 Nfe4 15. Rg1 f5 16. gxf6 Bxf6 17. Qg4 {1-0 (55) Kamsky,G (2674)-Abdusattorov,N (2627) Chess.com INT 2020} 1/2-1/2

[Event "16th Serbian Championship 2022"]
[Site "Bajina Basta"]
[Date "2022.12.07"]
[Round "2.5"]
[White "Djordjevic, Vuk"]
[Black "Ivic, Velimir"]
[Result "0-1"]
[ECO "B20"]
[WhiteElo "2394"]
[BlackElo "2560"]
[Annotator "TA"]
[PlyCount "112"]
[EventDate "2022.12.06"]
[EventType "tourn"]
[EventCountry "SRB"]
[SourceTitle "playchess.com"]
[Source "ChessBase"]
[SourceQuality "1"]
[TimeControl "40/5400+30:1800+30"]

{[%evp 9,111,0,2,-6,7,-1,0,0,0,0,7,-29,-38,-56,-53,-54,-24,-54,-37,-41,-41,-49,-42,-76,-67,-65,-22,-59,-81,-75,-53,-67,2,-53,57,-46,-54,-63,0,0,18,14,10,15,20,17,32,24,87,0,0,0,0,0,59,53,58,48,53,21,40,0,42,0,46,0,0,-325,-320,-646,-631,-606,-656,-666,-616,-665,-660,-645,-660,-623,-629,-652,-645,-666,-654,-705,-714,-729,-726,-685,-658,-795,-775,-779,-779,-893,-868,-29987,-29988,-29989,-1341,-29997,-29998,-29999]} 1. e4 {[%emt 0:00:46]} c5 {[%emt 0:00:09]} 2. g3 {[%emt 0:00:46]} Nc6 {[%emt 0:00:26]} 3. Bg2 {[%emt 0:00:25]} g6 {[%emt 0:03:29]} 4. Ne2 {[%emt 0:01:15]} Bg7 {[%emt 0:00:09]} 5. c3 {[%emt 0:00:47]} e5 {[%emt 0:02:08]} 6. d3 {[%emt 0:03:43] B20: Sicilian: Unusual White 2nd moves.} (6. f4 $5 {[%cal Rf4e5]}) 6... d6 {[%emt 0:06:04][%cal Bd7d6,Bd6d5][%mdl 32]} 7. Be3 {[%emt 0:02:28]} Nf6 {[%emt 0:02:49]} 8. O-O {[%emt 0:05:15] The position is equal.} O-O {[%emt 0:02:17]} 9. h3 {[%emt 0:01:54]} b6 {[%emt 0:03:41]} 10. f4 {[%emt 0:11:31]} d5 {[%emt 0:05:30]} 11. fxe5 {[%emt 0:04:47]} Nxe5 {[%emt 0:00:28]} 12. Bf4 {[%emt 0:03:56]} Nc6 {[%emt 0:11:35] [#]} (12... Nh5 $5 {[%cal Rd5e4]} 13. exd5 Nxf4 14. gxf4 Nd7 $11) 13. Qa4 $146 {[%emt 0:09:51]} ({Predecessor:} 13. Bg5 dxe4 14. Nd2 h6 15. Bxf6 Bxf6 {½-½ (15) Munoz Pantoja,M (2511)-Valenzuela Gomez,F (2394) Barbera del Valles 2019}) 13... Bd7 {[%emt 0:08:51]} 14. Qc2 {[%emt 0:13:59]} dxe4 {[%emt 0:02:18]} 15. dxe4 {[%emt 0:00:07]} Nh5 {[%emt 0:04:41]} 16. Bd6 {[%emt 0:13:48] Against Qe7} Re8 {[%emt 0:01:11][%cal Od7h3] ...Bxh3! is the strong threat.} 17. g4 {[%emt 0:00:47]} (17. Qb3 $2 Be6 18. Qd1 Qd7 $19) 17... Nf6 {[%emt 0:00:37][%cal Od7g4]} 18. Bg3 {[%emt 0:02:39]} Ne5 {[%emt 0:02:43]} 19. Na3 {[%emt 0:02:33] [#]} b5 $1 {[%emt 0:06:40][%cal Bb6b5,Bb5b4][%mdl 32]} 20. Rad1 {[%emt 0:01:36] aiming for Nxb5.} Qc8 {[%emt 0:00:28]} ({Black should play} 20... Qe7 $1 $15) 21. Nf4 {[%emt 0:02:50]} (21. Rd6 $11 h5 22. Rfxf6 (22. Rdxf6 Bxf6 23. Rxf6 hxg4 $16)) 21... h6 {[%emt 0:08:25]} (21... b4 $15 22. Nd3 Nxd3 23. Qxd3 bxa3) 22. Rf2 {[%emt 0:13:25]} (22. Nd3 $14 Nxd3 23. Qxd3) 22... b4 $15 {[%emt 0:06:17]} 23. Nb1 {[%emt 0:00:23]} Nc4 {[%emt 0:04:25]} (23... Bb5 $15) 24. Re1 $11 {[%emt 0:01:41]} Bb5 {[%emt 0:01:01][%cal Bd7b5,Bb5a6,Ba6b7][%mdl 32]} 25. a4 {[%emt 0:01:00]} Ba6 {[%emt 0:01:09]} 26. b3 {[%emt 0:00:36]} Ne5 {[%emt 0:00:20]} 27. c4 $1 {[%emt 0:00:06]} Bb7 {[%emt 0:05:34][%cal Oe5g4]} 28. Nd2 {[%emt 0:00:47]} (28. Nd5 {with more complications.} Nexg4 29. hxg4 Nxd5 30. cxd5 Qxg4 31. Rf3) 28... Nc6 {[%emt 0:01:06]} (28... h5 $11 {keeps the balance.}) 29. Rff1 {[%emt 0:00:39]} (29. Nd5 $16 Nd4 30. Qd1) 29... Nd4 {[%emt 0:01:11]} 30. Qd3 {[%emt 0:00:23]} Nd7 {[%emt 0:00:21]} 31. Nf3 {[%emt 0:00:33]} Nxf3+ {[%emt 0:07:24]} (31... Ne5 $11 32. Nxe5 Bxe5) 32. Qxf3 $14 {[%emt 0:00:17] Threatens to win with Nd5.} Ne5 {[%emt 0:00:42]} 33. Qe2 {[%emt 0:00:29]} a5 {[%emt 0:00:39]} 34. Kh2 {[%emt 0:00:45]} Ra6 {[%emt 0:00:18][%cal Ba8a6,Ba6f6,Bf6f1,Bf1f4,Bf4d4][%mdl 32]} 35. Rd1 {[%emt 0:00:36]} Rf6 {[%emt 0:01:00]} 36. Qe3 {[%emt 0:00:35]} (36. Rfe1 {simplifies} Rc6 37. Nd5 Ree6 38. Kh1) 36... Kh7 {[%emt 0:01:51]} ({But not} 36... Qxg4 37. Qxc5 Qg5 38. Qc7 $16) (36... g5 $11 37. Nh5 Rxf1 38. Rxf1 Re6) 37. Rd2 {[%emt 0:00:26]} (37. Kh1 $14 {might be stronger.}) 37... Qxg4 $11 {[%emt 0:00:28]} 38. Nd3 $2 {[%emt 0:00:28][%mdl 8192] White is now going downhill.} (38. Qxc5 $1 $11 Qc8 39. Qg1 (39. Qxa5 g5 $17)) 38... Rxf1 $1 $19 {[%emt 0:00:28]} 39. Bxe5 {[%emt 0:00:34]} (39. Nxe5 Qxg3+ 40. Qxg3 Bxe5 41. Bxf1) 39... Bxe5+ {[%emt 0:00:24]} 40. Nxe5 {[%emt 0:00:06]} Qf4+ {[%emt 0:00:39]} 41. Qxf4 {[%emt 0:30:18]} Rxf4 {[%emt 0:30:04]} 42. Nd7 {[%emt 0:00:00]} Bxe4 {[%emt 0:00:00]} 43. Re2 {[%emt 0:00:00]} Kg7 {[%emt 0:00:00][%cal Oe8d8]} 44. Nxc5 {[%emt 0:00:00] [#]} Bc6 {[%emt 0:00:00][%mdl 512]} 45. Rxe8 {[%emt 0:00:00]} Bxe8 {[%emt 0:00:00][%mdl 4096] Endgame KRB-KBN} 46. Kg3 {[%emt 0:00:00]} Rd4 {[%emt 0:00:00]} 47. Bd5 {[%emt 0:00:00]} Kf6 {[%emt 0:00:00]} 48. Kf2 {[%emt 0:00:00]} Ke5 {[%emt 0:00:00]} 49. Ke3 {[%emt 0:00:00]} Rd1 {[%emt 0:00:00]} 50. Nb7 {[%emt 0:00:00]} f5 {[%emt 0:00:00]} 51. Nxa5 {[%emt 0:00:00]} g5 {[%emt 0:00:00]} 52. Ke2 {[%emt 0:01:22]} Bh5+ {[%emt 0:00:00]} 53. Kf2 {[%emt 0:00:02]} Kf4 {[%emt 0:00:00]} 54. Nc6 {[%emt 0:00:35]} Rd2+ {[%emt 0:00:00]} (54... g4 $142 55. hxg4 fxg4 56. Kg2 g3 57. Ne5 Rd2+ 58. Kg1 Kxe5 59. Bg2 Rd1+ 60. Bf1 Bf3 61. a5 g2 62. Kh2 gxf1=Q 63. Kg3 Qg2+ 64. Kh4 Qh2#) 55. Kf1 {[%emt 0:00:08]} Kg3 {[%emt 0:00:00][%cal Rd2d1]} 56. Nxb4 {[%emt 0:00:13]} Rd1# {[%emt 0:00:00] Weighted Error Value: White=0.36/Black=0.18 (very precise)} 0-1